[Event "74th Superior Womens Argentine-ch 2023"]
[Site "Buenos Aires"]
[Date "2023.11.27"]
[Round "7.4"]
[White "Adam, Ernestina"]
[Black "Nejanky, Maisa"]
[Result "0-1"]
[ECO "B57"]
[WhiteElo "2036"]
[BlackElo "1951"]
[Annotator "NA RC"]
[PlyCount "220"]
[EventDate "2023.11.20"]
[EventType "swiss"]
[EventCountry "ARG"]
[SourceTitle "playchess.com"]
[Source "ChessBase"]
[SourceQuality "1"]
[TimeControl "5400+30"]

1. e4 {[%emt 0:00:02]} c5 {[%emt 0:07:04]} 2. Nf3 {[%emt 0:00:17]} d6 {[%emt 0:00:08]} 3. d4 {[%emt 0:00:18]} cxd4 {[%emt 0:00:06]} 4. Nxd4 {[%emt 0:00:20]} Nf6 {[%emt 0:00:06]} 5. Nc3 {[%emt 0:00:24]} Nc6 {[%emt 0:00:06]} 6. Bc4 {[%emt 0:00:49]} Qb6 {[%emt 0:02:39]} 7. Nb3 {[%emt 0:06:24]} e6 {[%emt 0:03:15]} 8. Be3 {[%emt 0:01:47]} Qc7 {[%emt 0:01:43]} 9. O-O {[%emt 0:05:23]} a6 {[%emt 0:01:22]} 10. Be2 {[%emt 0:04:32]} b5 {[%emt 0:01:01]} 11. a3 {[%emt 0:00:12]} Bb7 {[%emt 0:15:38]} 12. f4 {[%emt 0:02:12]} b4 {[%emt 0:13:10]} 13. axb4 {[%emt 0:08:34]} Nxb4 {[%emt 0:00:21]} 14. Bf3 {[%emt 0:06:20]} d5 {[%emt 0:12:31]} 15. e5 {[%emt 0:06:44]} Ne4 {[%emt 0:10:23]} 16. Bxe4 {[%emt 0:11:27]} dxe4 {[%emt 0:00:07]} 17. Qe2 {[%emt 0:01:05]} a5 {[%emt 0:12:33]} 18. Qf2 {[%emt 0:09:37]} a4 {[%emt 0:00:38]} 19. Nd4 {[%emt 0:00:47]} Bc6 {[%emt 0:06:51]} 20. Kh1 {[%emt 0:09:24]} Be7 {[%emt 0:03:29]} 21. Qe2 {[%emt 0:09:04]} O-O {[%emt 0:03:41]} 22. Bf2 {[%emt 0:00:49]} a3 {[%emt 0:02:31]} 23. bxa3 {[%emt 0:00:58]} Nd5 {[%emt 0:00:40]} 24. Nxc6 {[%emt 0:05:04]} Qxc6 {[%emt 0:00:46]} 25. Nxe4 {[%emt 0:01:42]} Nxf4 {[%emt 0:00:25]} 26. Qf3 {[%emt 0:00:00]} Nd5 {[%emt 0:00:36]} 27. Rfc1 {[%emt 0:00:46]} Ra4 {[%emt 0:00:35]} 28. c4 {[%emt 0:04:58]} Rxc4 {[%emt 0:00:11]} 29. Rxc4 {[%emt 0:00:01]} Qxc4 {[%emt 0:00:05]} 30. h3 {[%emt 0:00:30]} h6 {[%emt 0:00:58]} 31. a4 {[%emt 0:01:49]} Ra8 {[%emt 0:00:37]} 32. a5 {[%emt 0:01:42]} Qc7 {[%emt 0:01:11]} 33. Bd4 {[%emt 0:02:17]} Rxa5 {[%emt 0:00:39]} 34. Rf1 {[%emt 0:00:25]} Bf8 {[%emt 0:00:38]} 35. Nd6 {[%emt 0:00:43]} Bxd6 {[%emt 0:00:37]} 36. exd6 {[%emt 0:01:04]} Qd7 {[%emt 0:00:12]} 37. Qg3 {[%emt 0:00:00]} f6 {[%emt 0:00:52]} 38. Bb2 {[%emt 0:00:29]} e5 {[%emt 0:00:20]} 39. Ba3 {[%emt 0:00:30]} Kf7 {[%emt 0:00:40]} 40. Rc1 {[%emt 0:00:20]} Qa4 {[%emt 0:00:31]} 41. Bc5 {[%emt 0:00:36]} Qf4 {[%emt 0:00:29]} 42. Qe1 {[%emt 0:00:27]} Ra8 {[%emt 0:00:26]} 43. Rb1 {[%emt 0:00:24]} Qc4 {[%emt 0:00:34]} 44. Rc1 {[%emt 0:00:30]} Qa2 {[%emt 0:00:31]} 45. Qe4 {[%emt 0:00:37]} Ra4 {[%emt 0:00:30]} 46. Qf5 {[%emt 0:00:35]} Nf4 {[%emt 0:00:15]} 47. Qd7+ {[%emt 0:00:27]} Kg8 {[%emt 0:00:24]} 48. Qc8+ {[%emt 0:00:25]} Kh7 {[%emt 0:00:10]} 49. Qf5+ {[%emt 0:00:15]} Kg8 {[%emt 0:00:42]} 50. Rc2 {[%emt 0:00:30]} Qe6 {[%emt 0:00:43]} 51. Qxe6+ {[%emt 0:00:45]} Nxe6 {[%emt 0:00:01]} 52. d7 {[%emt 0:00:27]} Ra1+ {[%emt 0:00:29]} 53. Kh2 {[%emt 0:00:01]} Rd1 {[%emt 0:00:07]} 54. Be3 {[%emt 0:01:08]} Rxd7 {[%emt 0:00:07]} 55. Rc8+ {[%emt 0:00:21]} Kf7 {[%emt 0:00:06]} 56. g4 {[%emt 0:00:40]} Rd3 {[%emt 0:00:25]} 57. Bc1 {[%emt 0:00:12]} Nf8 {[%emt 0:02:25]} 58. Rc7+ {[%emt 0:00:15]} Nd7 {[%emt 0:00:27]} 59. Kg2 {[%emt 0:00:21]} g5 {[%emt 0:00:35]} 60. Ra7 {[%emt 0:00:50]} Ke6 {[%emt 0:00:33]} 61. Ra8 {[%emt 0:00:47]} Rc3 {[%emt 0:00:23]} 62. Ba3 {[%emt 0:00:20]} e4 {[%emt 0:00:30]} 63. Ra6+ {[%emt 0:00:23]} Kf7 {[%emt 0:00:18]} 64. Ra7 {[%emt 0:00:31]} Rd3 {[%emt 0:00:21]} 65. Bb4 {[%emt 0:00:35]} Ke6 {[%emt 0:00:40]} 66. Ra6+ {[%emt 0:00:42]} Ke5 {[%emt 0:00:40]} 67. Ra5+ {[%emt 0:00:33]} Kd4 {[%emt 0:00:34]} 68. Be1 {[%emt 0:00:33]} e3 {[%emt 0:00:36]} 69. Ra4+ {[%emt 0:00:10]} Kd5 {[%emt 0:00:17]} 70. Kf3 {[%emt 0:00:26]} e2+ {[%emt 0:00:40]} 71. Kxe2 {[%emt 0:00:02]} Rxh3 {[%emt 0:00:10]} 72. Ra5+ {[%emt 0:00:14]} Ke4 {[%emt 0:00:29]} 73. Ra4+ {[%emt 0:00:12]} Ke5 {[%emt 0:00:21]} 74. Ra5+ {[%emt 0:00:25]} Ke6 {[%emt 0:00:52]} 75. Ra6+ {[%emt 0:00:07]} Kf7 {[%emt 0:00:40]} 76. Ra7 {[%emt 0:00:37]} Ke7 {[%emt 0:00:18]} 77. Bb4+ {[%emt 0:00:48]} Ke6 {[%emt 0:00:09]} 78. Ra6+ {[%emt 0:00:19]} Ke5 {[%emt 0:00:12]} 79. Ra7 {[%emt 0:00:52]} Nb6 {[%emt 0:00:40]} 80. Ra6 {[%emt 0:01:46]} Nc4 {[%emt 0:00:55]} 81. Bf8 {[%emt 0:00:28]} Rh2+ {[%emt 0:00:42]} 82. Kf3 {[%emt 0:00:32]} Nd2+ {[%emt 0:00:25]} 83. Kg3 {[%emt 0:00:23]} Nf1+ {[%emt 0:00:16]} 84. Kf3 {[%emt 0:00:06]} Rc2 {[%emt 0:00:31]} 85. Bg7 {[%emt 0:00:43]} Nd2+ {[%emt 0:00:37]} 86. Ke3 {[%emt 0:00:26]} Ne4 {[%emt 0:00:27]} 87. Ra5+ {[%emt 0:00:21]} Nc5 {[%emt 0:00:40]} 88. Bxh6 {[%emt 0:00:36]} Rc3+ {[%emt 0:00:17]} 89. Ke2 {[%emt 0:00:43]} Kf4 {[%emt 0:00:32]} 90. Bg7 {[%emt 0:00:28]} Ne4 {[%emt 0:00:48]} 91. Bxf6 {[%emt 0:00:44]} Re3+ {[%emt 0:00:30]} 92. Kd1 {[%emt 0:00:30]} Nxf6 {[%emt 0:00:28]} 93. Rf5+ {[%emt 0:00:01]} Kxg4 {[%emt 0:00:06]} 94. Rxf6 {[%emt 0:00:01]} Kh3 {[%emt 0:00:13]} 95. Kd2 {[%emt 0:00:06]} Re7 {[%emt 0:00:11]} 96. Rh6+ {[%emt 0:00:50]} Kg3 {[%emt 0:00:50]} 97. Rh8 {[%emt 0:00:57]} g4 {[%emt 0:00:09]} 98. Rg8 {[%emt 0:00:19]} Kf3 {[%emt 0:00:19]} 99. Rf8+ {[%emt 0:00:24]} Kg2 {[%emt 0:00:04]} 100. Rg8 {[%emt 0:00:04]} g3 {[%emt 0:00:09]} 101. Rg6 {[%emt 0:00:59]} Kf2 {[%emt 0:00:15]} 102. Rf6+ {[%emt 0:00:16]} Kg1 {[%emt 0:00:05]} 103. Rg6 {[%emt 0:00:21]} g2 {[%emt 0:00:15]} 104. Rg8 {[%emt 0:00:02]} Re4 {[%emt 0:00:32]} 105. Kd3 {[%emt 0:00:21]} Rh4 {[%emt 0:02:49]} 106. Ke2 {[%emt 0:00:59]} Kh1 {[%emt 0:00:53]} 107. Kf2 {[%emt 0:00:33]} Rh7 {[%emt 0:00:21]} 108. Rg6 {[%emt 0:01:08]} Rf7+ {[%emt 0:00:12]} 109. Ke2 {[%emt 0:00:08]} g1=Q {[%emt 0:00:09]} 110. Rh6+ {[%emt 0:00:14]} Qh2+ {[%emt 0:00:06]} 0-1

[Event "74th Superior Womens Argentine-ch 2023"]
[Site "Buenos Aires"]
[Date "2023.11.27"]
[Round "7.5"]
[White "Flores Mirabal, Nancy"]
[Black "Montiel Marin, Micaela Agustina"]
[Result "1-0"]
[ECO "A21"]
[WhiteElo "1937"]
[BlackElo "1631"]
[Annotator "RC"]
[PlyCount "109"]
[EventDate "2023.11.20"]
[EventType "swiss"]
[EventCountry "ARG"]
[SourceTitle "playchess.com"]
[Source "ChessBase"]
[SourceQuality "1"]
[TimeControl "5400+30"]

1. c4 {[%emt 0:00:04]} g6 {[%emt 0:00:13]} 2. Nc3 {[%emt 0:00:11]} Bg7 {[%emt 0:00:12]} 3. g3 {[%emt 0:00:06]} d6 {[%emt 0:00:24]} 4. Bg2 {[%emt 0:00:36]} e5 {[%emt 0:00:29]} 5. d3 {[%emt 0:01:22]} f5 {[%emt 0:00:29]} 6. e4 {[%emt 0:00:32]} Nf6 {[%emt 0:02:11]} 7. exf5 {[%emt 0:01:50]} gxf5 {[%emt 0:00:08]} 8. Bg5 {[%emt 0:00:07]} O-O {[%emt 0:04:00]} 9. Nd5 {[%emt 0:07:13]} Nbd7 {[%emt 0:01:05]} 10. Qd2 {[%emt 0:01:03]} c6 {[%emt 0:05:01]} 11. Ne3 {[%emt 0:02:26]} Qb6 {[%emt 0:29:28]} 12. Ne2 {[%emt 0:06:46]} Ne8 {[%emt 0:08:03]} 13. O-O {[%emt 0:01:32]} h6 {[%emt 0:01:18]} 14. Bh4 {[%emt 0:01:22]} f4 {[%emt 0:01:54]} 15. gxf4 {[%emt 0:03:08]} exf4 {[%emt 0:01:27]} 16. Nxf4 {[%emt 0:07:32]} Rxf4 {[%emt 0:03:49]} 17. Nd5 {[%emt 0:00:06]} cxd5 {[%emt 0:01:20]} 18. Qxf4 {[%emt 0:00:13]} dxc4 {[%emt 0:07:57]} 19. Bd5+ {[%emt 0:01:54]} Kh8 {[%emt 0:00:20]} 20. Qf7 {[%emt 0:00:48]} Nef6 {[%emt 0:05:10]} 21. Rae1 {[%emt 0:02:34]} Qd8 {[%emt 0:00:25]} 22. Re7 {[%emt 0:16:58]} Qf8 {[%emt 0:02:29]} 23. dxc4 {[%emt 0:14:33]} Qxf7 {[%emt 0:05:05]} 24. Bxf7 {[%emt 0:00:22]} Ne5 {[%emt 0:01:54]} 25. f4 {[%emt 0:04:07]} Nc6 {[%emt 0:03:14]} 26. Rc7 {[%emt 0:03:39]} Bh3 {[%emt 0:02:53]} 27. Rf3 {[%emt 0:03:50]} Bf5 {[%emt 0:00:58]} 28. Rxb7 {[%emt 0:02:10]} Nd4 {[%emt 0:01:54]} 29. Re3 {[%emt 0:00:08]} Ng4 {[%emt 0:00:45]} 30. Ra3 {[%emt 0:01:42]} Ne2+ {[%emt 0:01:49]} 31. Kf1 {[%emt 0:00:04]} Nxf4 {[%emt 0:01:10]} 32. Bg3 {[%emt 0:00:10]} Nd3 {[%emt 0:02:30]} 33. Raxa7 {[%emt 0:02:24]} Rxa7 {[%emt 0:00:58]} 34. Rxa7 {[%emt 0:00:06]} Bd4 {[%emt 0:00:49]} 35. Ra5 {[%emt 0:02:03]} Ne3+ {[%emt 0:00:36]} 36. Ke2 {[%emt 0:00:24]} Nxb2 {[%emt 0:00:10]} 37. Kf3 {[%emt 0:02:08]} Bg4+ {[%emt 0:03:54]} 38. Ke4 {[%emt 0:00:20]} Nc2 {[%emt 0:01:16]} 39. Bxd6 {[%emt 0:00:45]} Kg7 {[%emt 0:00:24]} 40. Bd5 {[%emt 0:01:29]} Kf6 {[%emt 0:00:12]} 41. Be5+ {[%emt 0:03:39]} Bxe5 {[%emt 0:00:45]} 42. Ra6+ {[%emt 0:00:00]} Kg5 {[%emt 0:00:02]} 43. Kxe5 {[%emt 0:00:07]} Nd3+ {[%emt 0:00:55]} 44. Kd6 {[%emt 0:00:18]} Ne3 {[%emt 0:00:28]} 45. Ra3 {[%emt 0:00:55]} Nf5+ {[%emt 0:00:18]} 46. Kc7 {[%emt 0:00:38]} Ne5 {[%emt 0:01:31]} 47. c5 {[%emt 0:00:43]} Nd4 {[%emt 0:00:48]} 48. Kb7 {[%emt 0:01:18]} Bd7 {[%emt 0:00:41]} 49. Ra6 {[%emt 0:03:06]} Bb5 {[%emt 0:00:20]} 50. Rb6 {[%emt 0:00:48]} Nd7 {[%emt 0:00:35]} 51. c6 {[%emt 0:02:04]} Nxb6 {[%emt 0:00:37]} 52. Kxb6 {[%emt 0:00:04]} Bxc6 {[%emt 0:00:36]} 53. Bxc6 {[%emt 0:00:07]} Kh4 {[%emt 0:00:04]} 54. a4 {[%emt 0:00:57]} Nb3 {[%emt 0:00:55]} 55. Bd5 {[%emt 0:00:06]} 1-0

[Event "74th Superior Womens Argentine-ch 2023"]
[Site "Buenos Aires"]
[Date "2023.11.28"]
[Round "8.1"]
[White "Zuriel, Marisa"]
[Black "Campos, Maria Jose"]
[Result "0-1"]
[ECO "C84"]
[WhiteElo "2165"]
[BlackElo "2208"]
[Annotator "RC"]
[PlyCount "148"]
[EventDate "2023.11.20"]
[EventType "swiss"]
[EventCountry "ARG"]
[SourceTitle "playchess.com"]
[Source "ChessBase"]
[SourceQuality "1"]
[TimeControl "5400+30"]

1. e4 {[%emt 0:06:06]} e5 {[%emt 0:02:13]} 2. Nf3 {[%emt 0:00:09]} Nc6 {[%emt 0:00:21]} 3. Bb5 {[%emt 0:00:12]} a6 {[%emt 0:00:28]} 4. Ba4 {[%emt 0:00:08]} Nf6 {[%emt 0:00:11]} 5. d4 {[%emt 0:00:16]} exd4 {[%emt 0:01:29]} 6. O-O {[%emt 0:00:08]} Be7 {[%emt 0:02:32]} 7. Re1 {[%emt 0:00:09]} b5 {[%emt 0:03:47]} 8. e5 {[%emt 0:00:09]} Nxe5 {[%emt 0:00:56]} 9. Nxe5 {[%emt 0:00:12]} bxa4 {[%emt 0:00:09]} 10. Qxd4 {[%emt 0:00:07]} O-O {[%emt 0:00:56]} 11. Qxa4 {[%emt 0:00:08]} Rb8 {[%emt 0:01:24]} 12. Nc3 {[%emt 0:00:29]} Rb4 {[%emt 0:07:13]} 13. Qa5 {[%emt 0:00:25]} Bb7 {[%emt 0:09:53]} 14. f3 {[%emt 0:05:06]} Bd6 {[%emt 0:04:24]} 15. b3 {[%emt 0:07:28]} Rh4 {[%emt 0:13:48]} 16. Ba3 {[%emt 0:00:39]} Qb8 {[%emt 0:03:57]} 17. Bxd6 {[%emt 0:08:24]} cxd6 {[%emt 0:00:10]} 18. Nd3 {[%emt 0:02:40]} d5 {[%emt 0:08:18]} 19. g3 {[%emt 0:11:02]} Rh5 {[%emt 0:04:59]} 20. Nf4 {[%emt 0:11:34]} Qa7+ {[%emt 0:00:16]} 21. Kg2 {[%emt 0:00:09]} Rf5 {[%emt 0:08:59]} 22. Rad1 {[%emt 0:07:19]} Qa8 {[%emt 0:02:59]} 23. Rd4 {[%emt 0:09:56]} h5 {[%emt 0:01:38]} 24. Re3 {[%emt 0:01:32]} Rc8 {[%emt 0:01:12]} 25. h4 {[%emt 0:02:22]} Qa7 {[%emt 0:01:56]} 26. Nfe2 {[%emt 0:00:04]} d6 {[%emt 0:02:06]} 27. f4 {[%emt 0:07:14]} Qc5 {[%emt 0:02:57]} 28. Qa4 {[%emt 0:04:04]} Kf8 {[%emt 0:02:25]} 29. b4 {[%emt 0:00:47]} Qb6 {[%emt 0:00:35]} 30. Qb3 {[%emt 0:00:34]} Ng4 {[%emt 0:03:33]} 31. Red3 {[%emt 0:01:14]} Re8 {[%emt 0:00:53]} 32. Ng1 {[%emt 0:05:14]} Rf6 {[%emt 0:02:38]} 33. Nf3 {[%emt 0:02:24]} Rfe6 {[%emt 0:00:59]} 34. Qb1 {[%emt 0:00:35]} Ne3+ {[%emt 0:00:52]} 35. Kh2 {[%emt 0:01:25]} Nf5 {[%emt 0:00:22]} 36. Qd1 {[%emt 0:00:13]} g6 {[%emt 0:01:25]} 37. Qd2 {[%emt 0:01:06]} Nxd4 {[%emt 0:00:36]} 38. Nxd4 {[%emt 0:00:04]} Re1 {[%emt 0:00:23]} 39. f5 {[%emt 0:00:11]} Kg7 {[%emt 0:01:21]} 40. Qf2 {[%emt 0:01:02]} Qd8 {[%emt 0:01:07]} 41. Ne6+ {[%emt 0:00:14]} R1xe6 {[%emt 0:00:16]} 42. fxe6 {[%emt 0:00:03]} Rxe6 {[%emt 0:00:14]} 43. Nxd5 {[%emt 0:01:54]} Bxd5 {[%emt 0:02:35]} 44. Rxd5 {[%emt 0:00:05]} Qe7 {[%emt 0:00:13]} 45. Rd2 {[%emt 0:00:14]} Re4 {[%emt 0:00:44]} 46. a3 {[%emt 0:00:24]} Qe5 {[%emt 0:00:27]} 47. Kh3 {[%emt 0:03:39]} Kg8 {[%emt 0:00:17]} 48. Qb6 {[%emt 0:01:54]} Re1 {[%emt 0:00:49]} 49. Kh2 {[%emt 0:02:02]} Qe4 {[%emt 0:01:16]} 50. Rg2 {[%emt 0:00:12]} Rd1 {[%emt 0:00:24]} 51. Qf2 {[%emt 0:00:35]} Qe5 {[%emt 0:00:42]} 52. Rg1 {[%emt 0:00:17]} Rd4 {[%emt 0:00:20]} 53. Kh3 {[%emt 0:00:20]} Qe6+ {[%emt 0:00:23]} 54. Kh2 {[%emt 0:00:05]} Qd5 {[%emt 0:00:10]} 55. Re1 {[%emt 0:00:43]} Kg7 {[%emt 0:00:32]} 56. Re7 {[%emt 0:00:45]} Rd2 {[%emt 0:00:47]} 57. Re2 {[%emt 0:00:16]} Rd4 {[%emt 0:00:19]} 58. Re7 {[%emt 0:00:04]} Rc4 {[%emt 0:00:14]} 59. Re3 {[%emt 0:00:44]} Qd1 {[%emt 0:00:56]} 60. Re2 {[%emt 0:00:44]} Qa1 {[%emt 0:01:26]} 61. Qe3 {[%emt 0:01:44]} Qc3 {[%emt 0:00:54]} 62. Qxc3+ {[%emt 0:00:46]} Rxc3 {[%emt 0:00:04]} 63. Rd2 {[%emt 0:00:02]} Rc6 {[%emt 0:00:23]} 64. Kg2 {[%emt 0:00:08]} Kf6 {[%emt 0:00:06]} 65. Kf3 {[%emt 0:00:30]} Ke6 {[%emt 0:00:31]} 66. a4 {[%emt 0:01:17]} Rc4 {[%emt 0:00:50]} 67. b5 {[%emt 0:00:35]} Rxa4 {[%emt 0:01:02]} 68. bxa6 {[%emt 0:00:34]} Rxa6 {[%emt 0:00:06]} 69. Re2+ {[%emt 0:00:05]} Kd7 {[%emt 0:00:17]} 70. Re3 {[%emt 0:00:16]} Rc6 {[%emt 0:00:14]} 71. c3 {[%emt 0:00:09]} Rc4 {[%emt 0:00:07]} 72. Ke2 {[%emt 0:00:06]} Rg4 {[%emt 0:00:50]} 73. Kf3 {[%emt 0:00:17]} d5 {[%emt 0:00:18]} 74. Ke2 {[%emt 0:00:16]} Re4 {[%emt 0:00:56]} 0-1

[Event "74th Superior Womens Argentine-ch 2023"]
[Site "Buenos Aires"]
[Date "2023.11.28"]
[Round "8.2"]
[White "Nejanky, Maisa"]
[Black "Brizzi, Milagros Tatiana"]
[Result "0-1"]
[ECO "B10"]
[WhiteElo "1951"]
[BlackElo "2076"]
[Annotator "ChessBase"]
[PlyCount "68"]
[EventDate "2023.11.20"]
[EventType "swiss"]
[EventCountry "ARG"]
[SourceTitle "playchess.com"]
[Source "ChessBase"]
[SourceQuality "1"]
[TimeControl "5400+30"]

1. e4 {[%emt 0:00:41]} c6 {[%emt 0:00:08]} 2. b3 {[%emt 0:00:08]} d5 {[%emt 0:01:51]} 3. Bb2 {[%emt 0:00:27]} dxe4 {[%emt 0:02:17]} 4. Nc3 {[%emt 0:06:34]} Nf6 {[%emt 0:01:31]} 5. Nge2 {[%emt 0:00:10]} Bf5 {[%emt 0:04:44]} 6. Ng3 {[%emt 0:01:17]} Bg6 {[%emt 0:00:08]} 7. Qe2 {[%emt 0:00:47]} Nbd7 {[%emt 0:02:25]} 8. Ncxe4 {[%emt 0:02:48]} e6 {[%emt 0:00:43]} 9. f4 {[%emt 0:11:41]} Bxe4 {[%emt 0:15:35]} 10. Nxe4 {[%emt 0:01:01]} Be7 {[%emt 0:01:25]} 11. Ng5 {[%emt 0:11:25]} Nd5 {[%emt 0:08:52]} 12. Bxg7 {[%emt 0:43:07]} Rg8 {[%emt 0:03:57]} 13. Nxe6 {[%emt 0:00:36]} Qa5 {[%emt 0:07:35]} 14. Bb2 {[%emt 0:13:29]} fxe6 {[%emt 0:03:15]} 15. Qh5+ {[%emt 0:01:32]} Kd8 {[%emt 0:05:31]} 16. c4 {[%emt 0:00:30]} Bb4 {[%emt 0:04:44]} 17. O-O-O {[%emt 0:02:04]} Nxf4 {[%emt 0:06:45]} 18. Qxh7 {[%emt 0:00:07]} Kc7 {[%emt 0:07:13]} 19. g3 {[%emt 0:00:25]} Ng6 {[%emt 0:01:12]} 20. Bd3 {[%emt 0:00:34]} Nge5 {[%emt 0:01:19]} 21. Bb1 {[%emt 0:00:40]} Ba3 {[%emt 0:00:56]} 22. Rhe1 {[%emt 0:00:47]} Rad8 {[%emt 0:02:11]} 23. Bxa3 {[%emt 0:00:33]} Qxa3+ {[%emt 0:00:02]} 24. Kc2 {[%emt 0:00:05]} Nf3 {[%emt 0:01:06]} 25. Re4 {[%emt 0:00:53]} Ng5 {[%emt 0:00:52]} 26. Qh4 {[%emt 0:00:12]} Nxe4 {[%emt 0:00:18]} 27. Qxe4 {[%emt 0:00:04]} e5 {[%emt 0:00:21]} 28. g4 {[%emt 0:00:35]} Qd6 {[%emt 0:00:57]} 29. h4 {[%emt 0:00:23]} Nf6 {[%emt 0:00:42]} 30. Qe3 {[%emt 0:01:04]} Nxg4 {[%emt 0:00:22]} 31. Qxa7 {[%emt 0:00:21]} Qd4 {[%emt 0:01:09]} 32. Qa5+ {[%emt 0:00:54]} Kb8 {[%emt 0:00:13]} 33. Kc1 {[%emt 0:00:28]} e4 {[%emt 0:01:00]} 34. Re1 {[%emt 0:00:32]} Nf2 {[%emt 0:00:38]} 0-1

[Event "74th Superior Womens Argentine-ch 2023"]
[Site "Buenos Aires"]
[Date "2023.11.28"]
[Round "8.3"]
[White "Recalde, Ailin"]
[Black "Borda Rodas, Anapaola S."]
[Result "0-1"]
[ECO "C55"]
[WhiteElo "1449"]
[BlackElo "2261"]
[Annotator "RC"]
[PlyCount "96"]
[EventDate "2023.11.20"]
[EventType "swiss"]
[EventCountry "ARG"]
[SourceTitle "playchess.com"]
[Source "ChessBase"]
[SourceQuality "1"]
[TimeControl "5400+30"]

1. e4 {[%emt 0:00:10]} e5 {[%emt 0:00:29]} 2. Nf3 {[%emt 0:00:37]} Nc6 {[%emt 0:00:05]} 3. Bc4 {[%emt 0:00:33]} Be7 {[%emt 0:00:08]} 4. d3 {[%emt 0:01:14]} Nf6 {[%emt 0:00:29]} 5. O-O {[%emt 0:01:08]} O-O {[%emt 0:00:16]} 6. c3 {[%emt 0:02:34]} d6 {[%emt 0:00:42]} 7. h3 {[%emt 0:01:44]} Kh8 {[%emt 0:01:04]} 8. Be3 {[%emt 0:01:39]} Ng8 {[%emt 0:07:49]} 9. Qd2 {[%emt 0:09:46]} f5 {[%emt 0:02:21]} 10. Ng5 {[%emt 0:05:13]} f4 {[%emt 0:07:26]} 11. Nf7+ {[%emt 0:04:25]} Rxf7 {[%emt 0:00:05]} 12. Bxf7 {[%emt 0:00:11]} Bg5 {[%emt 0:02:19]} 13. Qe2 {[%emt 0:02:49]} fxe3 {[%emt 0:01:45]} 14. fxe3 {[%emt 0:01:15]} Nh6 {[%emt 0:02:07]} 15. Bb3 {[%emt 0:01:37]} Na5 {[%emt 0:00:50]} 16. Bc2 {[%emt 0:00:55]} c5 {[%emt 0:00:32]} 17. Nd2 {[%emt 0:02:38]} Be6 {[%emt 0:00:47]} 18. b3 {[%emt 0:05:17]} d5 {[%emt 0:08:24]} 19. exd5 {[%emt 0:03:57]} Bxd5 {[%emt 0:00:26]} 20. e4 {[%emt 0:00:16]} Be6 {[%emt 0:03:19]} 21. Rf3 {[%emt 0:04:18]} Ng8 {[%emt 0:04:42]} 22. Raf1 {[%emt 0:04:11]} Nf6 {[%emt 0:01:22]} 23. Kh1 {[%emt 0:04:19]} Bf4 {[%emt 0:04:07]} 24. Qf2 {[%emt 0:07:59]} Qe7 {[%emt 0:10:35]} 25. Rg1 {[%emt 0:06:08]} h5 {[%emt 0:07:05]} 26. g3 {[%emt 0:06:11]} Bh6 {[%emt 0:04:16]} 27. Qg2 {[%emt 0:04:12]} Qd7 {[%emt 0:03:25]} 28. g4 {[%emt 0:04:26]} hxg4 {[%emt 0:02:58]} 29. hxg4 {[%emt 0:00:31]} Bxg4 {[%emt 0:01:30]} 30. Rf2 {[%emt 0:05:33]} Qf7 {[%emt 0:02:57]} 31. Re1 {[%emt 0:03:29]} Qh5+ {[%emt 0:01:12]} 32. Qh2 {[%emt 0:02:24]} Bh3 {[%emt 0:02:09]} 33. Bd1 {[%emt 0:01:39]} Ng4 {[%emt 0:02:47]} 34. Bxg4 {[%emt 0:00:35]} Bxg4 {[%emt 0:00:19]} 35. Qxh5 {[%emt 0:00:32]} Bxh5 {[%emt 0:00:05]} 36. Rh2 {[%emt 0:00:38]} g6 {[%emt 0:00:36]} 37. Rf1 {[%emt 0:00:54]} Bf4 {[%emt 0:00:08]} 38. Rhf2 {[%emt 0:00:26]} Rd8 {[%emt 0:00:25]} 39. Nc4 {[%emt 0:01:27]} Nxc4 {[%emt 0:00:19]} 40. dxc4 {[%emt 0:00:16]} g5 {[%emt 0:00:18]} 41. Kg2 {[%emt 0:01:48]} Kg7 {[%emt 0:00:17]} 42. Rh1 {[%emt 0:00:39]} Bg4 {[%emt 0:00:17]} 43. b4 {[%emt 0:00:45]} Rd3 {[%emt 0:01:17]} 44. Rc2 {[%emt 0:00:32]} Bf3+ {[%emt 0:00:42]} 45. Kf2 {[%emt 0:00:57]} Bxh1 {[%emt 0:00:14]} 46. bxc5 {[%emt 0:00:08]} Bxe4 {[%emt 0:00:19]} 47. Re2 {[%emt 0:00:22]} Bg3+ {[%emt 0:00:31]} 48. Kg1 {[%emt 0:00:32]} Rd1+ {[%emt 0:00:10]} 0-1